[Event "Early-Titled-Tuesday-Blitz-April-02-2024"]
[Site "Chess.com"]
[Date "2024.04.02"]
[Round "10"]
[White "Kazmin_Semyon"]
[Black "flawian2008"]
[Result "0-1"]
[WhiteElo "2595"]
[BlackElo "2513"]
[TimeControl "180+1"]
[EndTime "9:55:00 PDT"]
[Termination "flawian2008 won by checkmate"]

1. e4 {[%clk 0:02:51.8]} 1... c5 {[%clk 0:03:00.2]} 2. Nf3 {[%clk 0:02:51.7]}
2... Nc6 {[%clk 0:03:00.8]} 3. d4 {[%clk 0:02:52.2]} 3... cxd4 {[%clk
0:03:01.7]} 4. Nxd4 {[%clk 0:02:53.1]} 4... g6 {[%clk 0:03:02.4]} 5. Nc3 {[%clk
0:02:52.9]} 5... Bg7 {[%clk 0:03:02.7]} 6. Be3 {[%clk 0:02:53.7]} 6... Nf6
{[%clk 0:03:03.3]} 7. Bc4 {[%clk 0:02:54.4]} 7... O-O {[%clk 0:03:03.7]} 8. Bb3
{[%clk 0:02:54.9]} 8... d6 {[%clk 0:03:03.8]} 9. f3 {[%clk 0:02:54.5]} 9... Bd7
{[%clk 0:03:04.4]} 10. Qd2 {[%clk 0:02:54.9]} 10... Rc8 {[%clk 0:03:05]} 11.
O-O-O {[%clk 0:02:55.2]} 11... Nxd4 {[%clk 0:03:05.5]} 12. Bxd4 {[%clk
0:02:55.1]} 12... b5 {[%clk 0:03:06.2]} 13. Nd5 {[%clk 0:02:50.5]} 13... Nxd5
{[%clk 0:03:05.7]} 14. Bxg7 {[%clk 0:02:51.1]} 14... Kxg7 {[%clk 0:03:05.7]} 15.
exd5 {[%clk 0:02:51.7]} 15... a5 {[%clk 0:03:05.6]} 16. a3 {[%clk 0:02:49.9]}
16... b4 {[%clk 0:03:05.7]} 17. axb4 {[%clk 0:02:46.4]} 17... axb4 {[%clk
0:03:06.6]} 18. Qxb4 {[%clk 0:02:47]} 18... Kg8 {[%clk 0:02:48.9]} 19. g4 {[%clk
0:02:19.4]} 19... Rb8 {[%clk 0:02:40.4]} 20. Qc3 {[%clk 0:02:07.8]} 20... Qb6
{[%clk 0:02:40.8]} 21. Qd4 {[%clk 0:01:53.4]} 21... Qa5 {[%clk 0:02:38.9]} 22.
Bc4 {[%clk 0:01:21.8]} 22... Rfc8 {[%clk 0:02:20.6]} 23. b3 {[%clk 0:01:18.5]}
23... Bb5 {[%clk 0:02:21.1]} 24. Bxb5 {[%clk 0:00:57.1]} 24... Rxb5 {[%clk
0:02:22]} 25. Rd3 {[%clk 0:00:52.5]} 25... Rbc5 {[%clk 0:02:02.5]} 26. Rd2
{[%clk 0:00:45.4]} 26... Rxd5 {[%clk 0:01:58.3]} 27. b4 {[%clk 0:00:17.5]} 27...
Qa3+ {[%clk 0:01:56.2]} 28. Qb2 {[%clk 0:00:18.4]} 28... Qxb2+ {[%clk
0:01:56.8]} 29. Kxb2 {[%clk 0:00:19.3]} 29... Rxd2 {[%clk 0:01:57.5]} 30. Rc1
{[%clk 0:00:19.7]} 30... Rxh2 {[%clk 0:01:51.9]} 31. Kb3 {[%clk 0:00:14.3]}
31... Rf2 {[%clk 0:01:49.9]} 32. b5 {[%clk 0:00:14.8]} 32... Rxf3+ {[%clk
0:01:50.3]} 33. Kb4 {[%clk 0:00:15.4]} 33... Rf4+ {[%clk 0:01:50.9]} 34. Ka5
{[%clk 0:00:13.4]} 34... Rxg4 {[%clk 0:01:51.3]} 35. b6 {[%clk 0:00:12.4]} 35...
Rc5+ {[%clk 0:01:50.1]} 36. Ka6 {[%clk 0:00:12.5]} 36... Ra4+ {[%clk 0:01:50.8]}
37. Kb7 {[%clk 0:00:13.2]} 37... Rb4 {[%clk 0:01:51.5]} 38. Ka6 {[%clk
0:00:11.7]} 38... Rcb5 {[%clk 0:01:51.3]} 39. c4 {[%clk 0:00:11.7]} 39... Rxb6+
{[%clk 0:01:51.7]} 40. Ka5 {[%clk 0:00:12.6]} 40... Rb2 {[%clk 0:01:50.3]} 41.
c5 {[%clk 0:00:04.9]} 41... Rb8 {[%clk 0:01:50.6]} 42. Ra1 {[%clk 0:00:04.8]}
42... Ra8# {[%clk 0:01:50.8]} 0-1

[Event "Early-Titled-Tuesday-Blitz-April-02-2024"]
[Site "Chess.com"]
[Date "2024.04.02"]
[Round "10"]
[White "smotherhubbard"]
[Black "TitanChess666"]
[Result "0-1"]
[WhiteElo "2357"]
[BlackElo "2511"]
[TimeControl "180+1"]
[EndTime "9:55:00 PDT"]
[Termination "TitanChess666 won on time"]

1. d4 {[%clk 0:03:00.9]} 1... f5 {[%clk 0:02:59.5]} 2. g3 {[%clk 0:03:00.5]}
2... Nf6 {[%clk 0:03:00]} 3. Bg2 {[%clk 0:03:00.9]} 3... e6 {[%clk 0:03:00.9]}
4. Nf3 {[%clk 0:03:00]} 4... Be7 {[%clk 0:02:59.9]} 5. O-O {[%clk 0:03:00.5]}
5... O-O {[%clk 0:03:00.5]} 6. c4 {[%clk 0:03:00.3]} 6... d6 {[%clk 0:03:01.1]}
7. b4 {[%clk 0:02:59.6]} 7... a5 {[%clk 0:02:59.4]} 8. b5 {[%clk 0:02:58.5]}
8... Qe8 {[%clk 0:02:57.8]} 9. a4 {[%clk 0:02:58.1]} 9... Ne4 {[%clk 0:02:55.4]}
10. Qb3 {[%clk 0:02:57.2]} 10... Bf6 {[%clk 0:02:54.4]} 11. e3 {[%clk
0:02:55.6]} 11... Nd7 {[%clk 0:02:51.8]} 12. Nfd2 {[%clk 0:02:55]} 12... Ng5
{[%clk 0:02:42.1]} 13. Nc3 {[%clk 0:02:40.3]} 13... e5 {[%clk 0:02:41.2]} 14.
dxe5 {[%clk 0:02:14.2]} 14... dxe5 {[%clk 0:02:40.1]} 15. Ba3 {[%clk 0:02:13.8]}
15... Be7 {[%clk 0:02:30.3]} 16. c5+ {[%clk 0:01:53.2]} 16... Kh8 {[%clk
0:02:29.5]} 17. c6 {[%clk 0:01:50.1]} 17... bxc6 {[%clk 0:02:29.3]} 18. Bxc6
{[%clk 0:01:47.2]} 18... Rb8 {[%clk 0:02:28.9]} 19. Nd5 {[%clk 0:01:43.9]} 19...
Bxa3 {[%clk 0:02:28.5]} 20. Qxa3 {[%clk 0:01:44.5]} 20... Qh5 {[%clk 0:02:25.3]}
21. f4 {[%clk 0:00:57.7]} 21... exf4 {[%clk 0:02:23.7]} 22. exf4 {[%clk
0:00:58.6]} 22... Ne6 {[%clk 0:02:15.7]} 23. Ne7 {[%clk 0:00:47.7]} 23... Nf6
{[%clk 0:01:56.9]} 24. Bf3 {[%clk 0:00:33.4]} 24... Ng4 {[%clk 0:01:42.2]} 25.
Rf2 {[%clk 0:00:24.5]} 25... Bb7 {[%clk 0:01:36.2]} 26. Re2 {[%clk 0:00:18]}
26... Nd4 {[%clk 0:01:31.8]} 27. Bxb7 {[%clk 0:00:08.4]} 27... Nxe2+ {[%clk
0:01:31.1]} 28. Kf1 {[%clk 0:00:06.7]} 28... Qxh2 {[%clk 0:01:28.7]} 29. Bg2
{[%clk 0:00:05.1]} 29... Nxg3+ {[%clk 0:01:28.8]} 30. Ke1 {[%clk 0:00:04.4]}
30... Qxg2 {[%clk 0:01:28.8]} 31. Kd1 {[%clk 0:00:02.8]} 31... Rbd8 {[%clk
0:01:26.3]} 32. Ra2 {[%clk 0:00:01.3]} 32... Qe2+ {[%clk 0:01:22]} 33. Kc1
{[%clk 0:00:01.7]} 33... Qe1+ {[%clk 0:01:22.6]} 0-1

[Event "Early-Titled-Tuesday-Blitz-April-02-2024"]
[Site "Chess.com"]
[Date "2024.04.02"]
[Round "10"]
[White "fmcabralis"]
[Black "Flaccidmoves"]
[Result "1-0"]
[WhiteElo "2415"]
[BlackElo "2416"]
[TimeControl "180+1"]
[EndTime "9:55:02 PDT"]
[Termination "fmcabralis won by resignation"]

1. e4 {[%clk 0:03:00.9]} 1... e6 {[%clk 0:02:59.1]} 2. d4 {[%clk 0:02:58.3]}
2... d5 {[%clk 0:02:59.6]} 3. Nc3 {[%clk 0:02:58.8]} 3... Bb4 {[%clk 0:02:59.3]}
4. e5 {[%clk 0:02:58]} 4... Ne7 {[%clk 0:02:59.1]} 5. Qg4 {[%clk 0:02:53.9]}
5... Nf5 {[%clk 0:02:56.2]} 6. a3 {[%clk 0:02:41.7]} 6... Bxc3+ {[%clk
0:02:55.4]} 7. bxc3 {[%clk 0:02:41.7]} 7... h5 {[%clk 0:02:51.9]} 8. Qh3 {[%clk
0:02:26.7]} 8... Qh4 {[%clk 0:02:34.6]} 9. Qd3 {[%clk 0:02:02.1]} 9... b6 {[%clk
0:02:31.3]} 10. Nf3 {[%clk 0:01:45]} 10... Qe7 {[%clk 0:02:22.5]} 11. Bg5 {[%clk
0:01:43.7]} 11... f6 {[%clk 0:02:22.3]} 12. Bf4 {[%clk 0:01:28.3]} 12... Ba6
{[%clk 0:02:20.9]} 13. Qd2 {[%clk 0:01:26.3]} 13... Bxf1 {[%clk 0:02:12.5]} 14.
Kxf1 {[%clk 0:01:27.2]} 14... c5 {[%clk 0:02:09.1]} 15. c4 {[%clk 0:01:23.2]}
15... cxd4 {[%clk 0:02:05.1]} 16. cxd5 {[%clk 0:01:18.7]} 16... exd5 {[%clk
0:02:01.1]} 17. exf6 {[%clk 0:01:16.9]} 17... Qxf6 {[%clk 0:01:57.8]} 18. Re1+
{[%clk 0:01:15.4]} 18... Kf7 {[%clk 0:01:40.7]} 19. Be5 {[%clk 0:01:02]} 19...
Qg6 {[%clk 0:01:17.2]} 20. Bxb8 {[%clk 0:00:59.2]} 20... Qh6 {[%clk 0:01:01.4]}
21. Bf4 {[%clk 0:00:56.8]} 21... Qf6 {[%clk 0:00:56.4]} 22. Be5 {[%clk
0:00:51.6]} 22... Qc6 {[%clk 0:00:50.3]} 23. Qf4 {[%clk 0:00:47.2]} 23... Qc8
{[%clk 0:00:46.5]} 24. Nxd4 {[%clk 0:00:44.6]} 24... Kg6 {[%clk 0:00:45.6]} 25.
h4 {[%clk 0:00:33.9]} 25... Rf8 {[%clk 0:00:44.4]} 26. Qg5+ {[%clk 0:00:33.2]}
26... Kh7 {[%clk 0:00:43.4]} 27. Nxf5 {[%clk 0:00:31.7]} 1-0

[Event "Early-Titled-Tuesday-Blitz-April-02-2024"]
[Site "Chess.com"]
[Date "2024.04.02"]
[Round "10"]
[White "Slovineanu"]
[Black "NigiriSushies"]
[Result "1-0"]
[WhiteElo "2462"]
[BlackElo "2291"]
[TimeControl "180+1"]
[EndTime "9:55:03 PDT"]
[Termination "Slovineanu won by checkmate"]

1. d4 {[%clk 0:03:00.9]} 1... d5 {[%clk 0:02:59.2]} 2. Nf3 {[%clk 0:03:01.1]}
2... Nf6 {[%clk 0:02:59.3]} 3. c4 {[%clk 0:03:01.3]} 3... c6 {[%clk 0:02:59.4]}
4. e3 {[%clk 0:03:01.5]} 4... Bf5 {[%clk 0:02:56.5]} 5. Nc3 {[%clk 0:03:01.2]}
5... e6 {[%clk 0:02:56.6]} 6. Nh4 {[%clk 0:03:01.4]} 6... Be4 {[%clk 0:02:55.7]}
7. f3 {[%clk 0:03:00.9]} 7... Bg6 {[%clk 0:02:55.7]} 8. Qb3 {[%clk 0:03:01.1]}
8... Qc7 {[%clk 0:02:54.6]} 9. Bd2 {[%clk 0:02:59.4]} 9... Nbd7 {[%clk
0:02:53.8]} 10. O-O-O {[%clk 0:02:58.9]} 10... a6 {[%clk 0:02:53]} 11. Nxg6
{[%clk 0:02:58.5]} 11... hxg6 {[%clk 0:02:52.5]} 12. cxd5 {[%clk 0:02:54.7]}
12... exd5 {[%clk 0:02:50.1]} 13. e4 {[%clk 0:02:53.9]} 13... dxe4 {[%clk
0:02:46.1]} 14. fxe4 {[%clk 0:02:53.7]} 14... b5 {[%clk 0:02:39.8]} 15. Kb1
{[%clk 0:02:34]} 15... Rxh2 {[%clk 0:02:32]} 16. Rxh2 {[%clk 0:02:33.5]} 16...
Qxh2 {[%clk 0:02:32.8]} 17. e5 {[%clk 0:02:29.7]} 17... Ng8 {[%clk 0:02:24.5]}
18. e6 {[%clk 0:02:19.5]} 18... fxe6 {[%clk 0:02:05.4]} 19. Qxe6+ {[%clk
0:02:19.2]} 19... Ne7 {[%clk 0:02:04.9]} 20. Bg5 {[%clk 0:01:45.5]} 20... Qh5
{[%clk 0:01:05.1]} 21. Bxe7 {[%clk 0:01:35.3]} 21... Bxe7 {[%clk 0:01:03.4]} 22.
Bd3 {[%clk 0:01:29.4]} 22... Kd8 {[%clk 0:00:33.7]} 23. Bxg6 {[%clk 0:01:23.5]}
23... Qh6 {[%clk 0:00:25.7]} 24. d5 {[%clk 0:01:05.9]} 24... c5 {[%clk
0:00:16.9]} 25. d6 {[%clk 0:01:01.5]} 25... Bf6 {[%clk 0:00:05.8]} 26. Qe8#
{[%clk 0:00:59.9]} 1-0

[Event "Early-Titled-Tuesday-Blitz-April-02-2024"]
[Site "Chess.com"]
[Date "2024.04.02"]
[Round "10"]
[White "MasterKroket"]
[Black "Elegance_Riks"]
[Result "1-0"]
[WhiteElo "2587"]
[BlackElo "2756"]
[TimeControl "180+1"]
[EndTime "9:55:04 PDT"]
[Termination "MasterKroket won by resignation"]

1. e4 {[%clk 0:03:00.9]} 1... Nf6 {[%clk 0:02:53.9]} 2. e5 {[%clk 0:03:00.2]}
2... Nd5 {[%clk 0:02:54.3]} 3. d4 {[%clk 0:03:00.4]} 3... d6 {[%clk 0:02:54.4]}
4. c4 {[%clk 0:03:00.5]} 4... Nb6 {[%clk 0:02:54.3]} 5. f4 {[%clk 0:03:01.1]}
5... g6 {[%clk 0:02:33.4]} 6. Be3 {[%clk 0:02:58.6]} 6... Bg7 {[%clk 0:02:33.4]}
7. Nc3 {[%clk 0:02:58.2]} 7... Be6 {[%clk 0:02:25.2]} 8. b3 {[%clk 0:02:55.7]}
8... dxe5 {[%clk 0:02:18.9]} 9. fxe5 {[%clk 0:02:46.3]} 9... c5 {[%clk
0:02:18.6]} 10. Nf3 {[%clk 0:02:43]} 10... O-O {[%clk 0:02:01.5]} 11. d5 {[%clk
0:02:41.6]} 11... Bg4 {[%clk 0:02:00.9]} 12. Bxc5 {[%clk 0:02:34.6]} 12... N8d7
{[%clk 0:01:54.2]} 13. Bd4 {[%clk 0:02:31.7]} 13... Nxe5 {[%clk 0:01:50.2]} 14.
Be2 {[%clk 0:02:29.4]} 14... Bxf3 {[%clk 0:01:47.8]} 15. Bxf3 {[%clk 0:02:22.7]}
15... Nxf3+ {[%clk 0:01:47.5]} 16. gxf3 {[%clk 0:02:23.4]} 16... e5 {[%clk
0:01:47.7]} 17. Bf2 {[%clk 0:02:13.9]} 17... Nd7 {[%clk 0:01:45.7]} 18. O-O
{[%clk 0:02:09.2]} 18... Qg5+ {[%clk 0:01:37.5]} 19. Kh1 {[%clk 0:02:08.6]}
19... Qh5 {[%clk 0:01:38.1]} 20. Bg3 {[%clk 0:02:01.3]} 20... f5 {[%clk
0:01:37.2]} 21. Rc1 {[%clk 0:01:56.7]} 21... Rae8 {[%clk 0:01:36.7]} 22. Nb5
{[%clk 0:01:54.7]} 22... f4 {[%clk 0:01:22.7]} 23. Bf2 {[%clk 0:01:51.5]} 23...
e4 {[%clk 0:01:23.1]} 24. fxe4 {[%clk 0:01:50.4]} 24... f3 {[%clk 0:01:23.4]}
25. Bg3 {[%clk 0:01:40.9]} 25... Rxe4 {[%clk 0:01:18]} 26. d6 {[%clk 0:01:32]}
26... Re2 {[%clk 0:01:16.2]} 27. Qd5+ {[%clk 0:01:31.5]} 27... Qxd5 {[%clk
0:01:15.8]} 28. cxd5 {[%clk 0:01:32.4]} 28... a6 {[%clk 0:01:12.9]} 29. Nc7
{[%clk 0:01:26.8]} 29... Be5 {[%clk 0:01:03.2]} 30. Ne6 {[%clk 0:01:24.3]} 30...
Bxg3 {[%clk 0:00:48.9]} 31. hxg3 {[%clk 0:01:23.8]} 31... Re8 {[%clk 0:00:37.4]}
32. Rxf3 {[%clk 0:01:20.6]} 32... Rd2 {[%clk 0:00:36.2]} 33. Rc7 {[%clk
0:01:17.5]} 33... Ne5 {[%clk 0:00:36.5]} 34. d7 {[%clk 0:01:18]} 34... Rd1+
{[%clk 0:00:29.9]} 35. Kg2 {[%clk 0:01:16.2]} 35... Rd2+ {[%clk 0:00:24.3]} 36.
Rf2 {[%clk 0:01:14.3]} 36... Rxf2+ {[%clk 0:00:24.1]} 37. Kxf2 {[%clk
0:01:15.2]} 37... Ra8 {[%clk 0:00:24.4]} 38. Rc8+ {[%clk 0:01:14.9]} 1-0

[Event "Early-Titled-Tuesday-Blitz-April-02-2024"]
[Site "Chess.com"]
[Date "2024.04.02"]
[Round "10"]
[White "Orphanator2009"]
[Black "Matols"]
[Result "1-0"]
[WhiteElo "2521"]
[BlackElo "2362"]
[TimeControl "180+1"]
[EndTime "9:55:04 PDT"]
[Termination "Orphanator2009 won by resignation"]

1. a3 {[%clk 0:03:00.9]} 1... d5 {[%clk 0:02:59.2]} 2. Nf3 {[%clk 0:03:00.2]}
2... Nf6 {[%clk 0:02:58.1]} 3. e3 {[%clk 0:03:00.2]} 3... g6 {[%clk 0:02:57.7]}
4. b4 {[%clk 0:02:56.7]} 4... Bg7 {[%clk 0:02:57.2]} 5. Bb2 {[%clk 0:02:57.1]}
5... O-O {[%clk 0:02:56.9]} 6. c4 {[%clk 0:02:54.3]} 6... c6 {[%clk 0:02:55.3]}
7. Be2 {[%clk 0:02:53.7]} 7... a5 {[%clk 0:02:54.3]} 8. O-O {[%clk 0:02:53.2]}
8... axb4 {[%clk 0:02:53.7]} 9. axb4 {[%clk 0:02:54.1]} 9... Rxa1 {[%clk
0:02:53.4]} 10. Bxa1 {[%clk 0:02:55]} 10... Bf5 {[%clk 0:02:48.1]} 11. Nc3
{[%clk 0:02:50.8]} 11... dxc4 {[%clk 0:02:45.4]} 12. Bxc4 {[%clk 0:02:49]} 12...
Bd3 {[%clk 0:02:43.9]} 13. Bxd3 {[%clk 0:02:35.6]} 13... Qxd3 {[%clk 0:02:44.8]}
14. Ne5 {[%clk 0:02:31.7]} 14... Qd6 {[%clk 0:02:43.9]} 15. d4 {[%clk
0:02:26.4]} 15... Nbd7 {[%clk 0:02:42.9]} 16. Nxd7 {[%clk 0:02:24]} 16... Qxd7
{[%clk 0:02:40.1]} 17. Qb3 {[%clk 0:02:20.9]} 17... Ra8 {[%clk 0:02:37.5]} 18.
Bb2 {[%clk 0:02:21]} 18... Nd5 {[%clk 0:02:34.3]} 19. Ra1 {[%clk 0:02:20.2]}
19... Rxa1+ {[%clk 0:02:32.3]} 20. Bxa1 {[%clk 0:02:21.1]} 20... Nxc3 {[%clk
0:02:28.2]} 21. Bxc3 {[%clk 0:02:21.1]} 21... Qd5 {[%clk 0:02:24.5]} 22. Qxd5
{[%clk 0:02:15.9]} 22... cxd5 {[%clk 0:02:24.2]} 23. b5 {[%clk 0:02:16.8]} 23...
e6 {[%clk 0:02:22.6]} 24. Kf1 {[%clk 0:02:16.9]} 24... Kf8 {[%clk 0:02:21.5]}
25. Ke2 {[%clk 0:02:15.6]} 25... Ke7 {[%clk 0:02:21.1]} 26. Kd3 {[%clk
0:02:13.7]} 26... Kd7 {[%clk 0:02:19.4]} 27. f3 {[%clk 0:02:12.6]} 27... Bf8
{[%clk 0:02:17.1]} 28. Kc2 {[%clk 0:02:10.2]} 28... Kc7 {[%clk 0:02:14.6]} 29.
Ba5+ {[%clk 0:02:10]} 29... Kd7 {[%clk 0:02:10.7]} 30. Kb3 {[%clk 0:02:09.8]}
30... Bd6 {[%clk 0:02:09.5]} 31. h3 {[%clk 0:02:07.9]} 31... h5 {[%clk
0:02:07.9]} 32. g4 {[%clk 0:02:06.6]} 32... Bg3 {[%clk 0:02:04.5]} 33. Bd2
{[%clk 0:02:00.5]} 33... Bd6 {[%clk 0:02:01.2]} 34. Bb4 {[%clk 0:01:50.6]} 34...
Bg3 {[%clk 0:01:59.7]} 35. Bd2 {[%clk 0:01:50]} 35... Bd6 {[%clk 0:01:58.6]} 36.
Bb4 {[%clk 0:01:49.5]} 36... Bg3 {[%clk 0:01:58.1]} 37. Kc2 {[%clk 0:01:44.6]}
37... Bf2 {[%clk 0:01:47.8]} 38. Kd3 {[%clk 0:01:43.1]} 38... Bg3 {[%clk
0:01:47.3]} 39. Ke2 {[%clk 0:01:34.1]} 39... Bc7 {[%clk 0:01:44.6]} 40. Kd3
{[%clk 0:01:30.7]} 40... Bd6 {[%clk 0:01:32.6]} 41. Bxd6 {[%clk 0:01:24.3]}
41... Kxd6 {[%clk 0:01:33.5]} 42. g5 {[%clk 0:01:24.1]} 42... e5 {[%clk
0:01:22.7]} 43. dxe5+ {[%clk 0:01:21.2]} 43... Kc5 {[%clk 0:01:14]} 44. f4
{[%clk 0:01:21.1]} 44... Kxb5 {[%clk 0:01:12]} 45. f5 {[%clk 0:01:21.5]} 45...
Kc5 {[%clk 0:01:07]} 46. e6 {[%clk 0:01:21.7]} 46... Kd6 {[%clk 0:01:02.5]} 47.
exf7 {[%clk 0:01:21.5]} 47... Ke7 {[%clk 0:01:01.8]} 48. fxg6 {[%clk 0:01:20.1]}
48... b5 {[%clk 0:01:01.1]} 49. Kc3 {[%clk 0:01:19.4]} 1-0

[Event "Early-Titled-Tuesday-Blitz-April-02-2024"]
[Site "Chess.com"]
[Date "2024.04.02"]
[Round "10"]
[White "MIss_MIaMI"]
[Black "Vasily_IM"]
[Result "0-1"]
[WhiteElo "2365"]
[BlackElo "2536"]
[TimeControl "180+1"]
[EndTime "9:55:09 PDT"]
[Termination "Vasily_IM won by checkmate"]

1. e4 {[%clk 0:03:00.9]} 1... e5 {[%clk 0:02:43.8]} 2. Nf3 {[%clk 0:03:01.4]}
2... Nf6 {[%clk 0:02:43.2]} 3. Nxe5 {[%clk 0:02:58.3]} 3... d6 {[%clk
0:02:42.7]} 4. Nf3 {[%clk 0:02:58.7]} 4... Nxe4 {[%clk 0:02:43.3]} 5. d3 {[%clk
0:02:58.8]} 5... Nf6 {[%clk 0:02:42.9]} 6. Be2 {[%clk 0:02:58.8]} 6... Be7
{[%clk 0:02:43]} 7. O-O {[%clk 0:02:59.5]} 7... O-O {[%clk 0:02:43.5]} 8. h3
{[%clk 0:03:00.2]} 8... b6 {[%clk 0:02:42.2]} 9. Nc3 {[%clk 0:02:59.9]} 9... Bb7
{[%clk 0:02:42]} 10. Bf4 {[%clk 0:03:00.1]} 10... Nbd7 {[%clk 0:02:41.3]} 11.
Re1 {[%clk 0:03:00.7]} 11... Re8 {[%clk 0:02:41]} 12. Qd2 {[%clk 0:03:01.1]}
12... Bf8 {[%clk 0:02:40]} 13. Ng5 {[%clk 0:02:51.8]} 13... Ne5 {[%clk
0:02:30.7]} 14. Nge4 {[%clk 0:02:48.2]} 14... d5 {[%clk 0:02:24.4]} 15. Nxf6+
{[%clk 0:02:31.8]} 15... Qxf6 {[%clk 0:02:24]} 16. Bg3 {[%clk 0:02:30]} 16...
Bd6 {[%clk 0:02:15.4]} 17. Nb5 {[%clk 0:02:26.2]} 17... Qg6 {[%clk 0:01:27.6]}
18. Nxd6 {[%clk 0:02:22.2]} 18... cxd6 {[%clk 0:01:27.3]} 19. Kh2 {[%clk
0:02:03.1]} 19... d4 {[%clk 0:01:26.9]} 20. Qf4 {[%clk 0:01:46.8]} 20... Rac8
{[%clk 0:01:25.1]} 21. Rac1 {[%clk 0:01:37.6]} 21... Nc6 {[%clk 0:01:08.6]} 22.
Qxd6 {[%clk 0:01:33.8]} 22... Re6 {[%clk 0:01:08.1]} 23. Qd7 {[%clk 0:01:14.1]}
23... Re7 {[%clk 0:01:04.2]} 24. Qg4 {[%clk 0:01:14.5]} 24... Rce8 {[%clk
0:00:59.4]} 25. Qh4 {[%clk 0:00:31.6]} 25... Rxe2 {[%clk 0:00:56.5]} 26. Rxe2
{[%clk 0:00:32.5]} 26... Rxe2 {[%clk 0:00:56.4]} 27. b4 {[%clk 0:00:30.4]} 27...
Qe6 {[%clk 0:00:53.9]} 28. b5 {[%clk 0:00:29]} 28... Ne7 {[%clk 0:00:53.8]} 29.
Qxd4 {[%clk 0:00:28.2]} 29... Qd5 {[%clk 0:00:50.3]} 30. Qf4 {[%clk 0:00:27]}
30... Qxg2# {[%clk 0:00:49.7]} 0-1

[Event "Early-Titled-Tuesday-Blitz-April-02-2024"]
[Site "Chess.com"]
[Date "2024.04.02"]
[Round "10"]
[White "yaguigor"]
[Black "JosefineHeinemann"]
[Result "0-1"]
[WhiteElo "2636"]
[BlackElo "2545"]
[TimeControl "180+1"]
[EndTime "9:55:12 PDT"]
[Termination "JosefineHeinemann won by resignation"]

1. e4 {[%clk 0:02:55.2]} 1... c5 {[%clk 0:02:59.3]} 2. Nf3 {[%clk 0:02:54.5]}
2... d6 {[%clk 0:02:59.6]} 3. d4 {[%clk 0:02:55]} 3... cxd4 {[%clk 0:03:00.5]}
4. Nxd4 {[%clk 0:02:55.6]} 4... Nf6 {[%clk 0:03:00.8]} 5. Nc3 {[%clk 0:02:55.6]}
5... a6 {[%clk 0:03:01.3]} 6. f3 {[%clk 0:02:56]} 6... e5 {[%clk 0:03:00.7]} 7.
Nb3 {[%clk 0:02:56]} 7... Be6 {[%clk 0:03:00.5]} 8. Be3 {[%clk 0:02:56.3]} 8...
Be7 {[%clk 0:02:57]} 9. Qd2 {[%clk 0:02:55.6]} 9... h5 {[%clk 0:02:56.9]} 10.
Be2 {[%clk 0:02:42.4]} 10... Nbd7 {[%clk 0:02:49.4]} 11. Nd5 {[%clk 0:02:39.7]}
11... Bxd5 {[%clk 0:02:42.8]} 12. exd5 {[%clk 0:02:39.3]} 12... Rc8 {[%clk
0:02:25.9]} 13. c4 {[%clk 0:02:36.9]} 13... b6 {[%clk 0:02:23.5]} 14. O-O {[%clk
0:02:34.6]} 14... a5 {[%clk 0:02:23]} 15. Rae1 {[%clk 0:02:31.6]} 15... O-O
{[%clk 0:02:22.5]} 16. Kh1 {[%clk 0:02:25.2]} 16... a4 {[%clk 0:02:22.4]} 17.
Na1 {[%clk 0:02:23.4]} 17... Nc5 {[%clk 0:02:22.7]} 18. Nc2 {[%clk 0:02:21.3]}
18... Re8 {[%clk 0:02:19.2]} 19. Nb4 {[%clk 0:02:21]} 19... e4 {[%clk
0:02:19.4]} 20. Nc6 {[%clk 0:02:19.3]} 20... Qd7 {[%clk 0:02:18.6]} 21. Nxe7+
{[%clk 0:02:16.8]} 21... Qxe7 {[%clk 0:02:12]} 22. fxe4 {[%clk 0:02:14.6]} 22...
Nfxe4 {[%clk 0:02:11.8]} 23. Qc1 {[%clk 0:02:07.8]} 23... Ng3+ {[%clk
0:01:32.9]} 24. hxg3 {[%clk 0:02:06.5]} 24... Qxe3 {[%clk 0:01:33.8]} 25. Qxe3
{[%clk 0:02:05.5]} 25... Rxe3 {[%clk 0:01:33.4]} 26. Bxh5 {[%clk 0:02:06]} 26...
Rxe1 {[%clk 0:01:33.2]} 27. Rxe1 {[%clk 0:02:04.6]} 27... g6 {[%clk 0:01:32.2]}
28. Bg4 {[%clk 0:01:54.4]} 28... f5 {[%clk 0:01:30.8]} 29. Bf3 {[%clk
0:01:55.1]} 29... Kf7 {[%clk 0:01:29.5]} 30. g4 {[%clk 0:01:50.3]} 30... Nd3
{[%clk 0:01:03.5]} 31. Re6 {[%clk 0:01:48.8]} 31... Nxb2 {[%clk 0:01:00.8]} 32.
gxf5 {[%clk 0:01:48.1]} 32... gxf5 {[%clk 0:00:59.7]} 33. Bh5+ {[%clk
0:01:44.3]} 33... Kg7 {[%clk 0:00:54.4]} 34. Rg6+ {[%clk 0:01:44.4]} 34... Kh7
{[%clk 0:00:54.4]} 35. Rxd6 {[%clk 0:01:43.5]} 35... Nxc4 {[%clk 0:00:52.3]} 36.
Rf6 {[%clk 0:01:33.4]} 36... Ne3 {[%clk 0:00:41.7]} 37. d6 {[%clk 0:01:31.1]}
37... Rd8 {[%clk 0:00:40.9]} 38. Kg1 {[%clk 0:01:24.4]} 38... b5 {[%clk
0:00:38.8]} 39. Kf2 {[%clk 0:01:22.6]} 39... Nc4 {[%clk 0:00:38.9]} 40. Rxf5
{[%clk 0:01:20]} 40... Nxd6 {[%clk 0:00:38]} 41. Rd5 {[%clk 0:01:16.9]} 41...
Ne4+ {[%clk 0:00:36.2]} 42. Ke3 {[%clk 0:01:15.2]} 42... Rxd5 {[%clk 0:00:37.1]}
0-1

[Event "Early-Titled-Tuesday-Blitz-April-02-2024"]
[Site "Chess.com"]
[Date "2024.04.02"]
[Round "10"]
[White "slidingknight2775"]
[Black "DeArron_Fox"]
[Result "1-0"]
[WhiteElo "2614"]
[BlackElo "2511"]
[TimeControl "180+1"]
[EndTime "9:55:18 PDT"]
[Termination "slidingknight2775 won on time"]

1. Nf3 {[%clk 0:02:56]} 1... d5 {[%clk 0:02:37.4]} 2. e3 {[%clk 0:02:54.4]} 2...
Nf6 {[%clk 0:02:34.2]} 3. b3 {[%clk 0:02:33.7]} 3... Bg4 {[%clk 0:02:12.2]} 4.
h3 {[%clk 0:02:28.9]} 4... Bh5 {[%clk 0:01:56.4]} 5. Be2 {[%clk 0:02:17.3]} 5...
e6 {[%clk 0:01:53]} 6. Bb2 {[%clk 0:02:17.5]} 6... Bd6 {[%clk 0:01:44.4]} 7. Ne5
{[%clk 0:02:13.4]} 7... Bxe2 {[%clk 0:01:42]} 8. Qxe2 {[%clk 0:02:14.3]} 8...
O-O {[%clk 0:01:41.7]} 9. f4 {[%clk 0:02:11.1]} 9... Nfd7 {[%clk 0:01:06.4]} 10.
Nf3 {[%clk 0:02:02.3]} 10... c5 {[%clk 0:00:55.7]} 11. O-O {[%clk 0:02:00.9]}
11... Nc6 {[%clk 0:00:53.4]} 12. d3 {[%clk 0:02:01.5]} 12... e5 {[%clk
0:00:42.7]} 13. f5 {[%clk 0:01:40.1]} 13... e4 {[%clk 0:00:22.5]} 14. dxe4
{[%clk 0:01:41]} 14... dxe4 {[%clk 0:00:22.9]} 15. Nfd2 {[%clk 0:01:38.8]} 15...
Re8 {[%clk 0:00:19.7]} 16. Nc4 {[%clk 0:01:29.7]} 16... Bc7 {[%clk 0:00:08]} 17.
f6 {[%clk 0:01:22]} 17... Nxf6 {[%clk 0:00:07.5]} 18. Bxf6 {[%clk 0:01:18.7]}
18... gxf6 {[%clk 0:00:08.4]} 19. Nc3 {[%clk 0:01:19.6]} 19... Kh8 {[%clk
0:00:04.3]} 20. Rad1 {[%clk 0:01:19]} 20... Qc8 {[%clk 0:00:01.7]} 21. Qf2
{[%clk 0:01:10]} 21... Ne5 {[%clk 0:00:02.1]} 22. Qxf6+ {[%clk 0:01:07.7]} 22...
Kg8 {[%clk 0:00:02.7]} 23. Nd5 {[%clk 0:01:01.9]} 23... Nxc4 {[%clk 0:00:01.9]}
24. Qxf7+ {[%clk 0:00:59]} 24... Kh8 {[%clk 0:00:02.6]} 25. Nf6 {[%clk
0:00:49.4]} 1-0